[Event "Live Chess"]
[Site "Chess.com"]
[Date "2023.05.21"]
[Round "-"]
[White "Brooms1989"]
[Black "Singapourfeuj"]
[Result "0-1"]
[WhiteElo "1106"]
[BlackElo "2194"]
[TimeControl "300"]
[EndTime "16:59:25 PDT"]
[Termination "Singapourfeuj won by checkmate"]

1. e4 {[%clk 0:04:57.4]} 1... d5 {[%clk 0:04:58.6]} 2. exd5 {[%clk 0:04:53.3]}
2... Nf6 {[%clk 0:04:57.5]} 3. d4 {[%clk 0:04:48.8]} 3... g6 {[%clk 0:04:55.9]}
4. Nc3 {[%clk 0:04:46.6]} 4... Bg7 {[%clk 0:04:54.7]} 5. Bc4 {[%clk 0:04:41.9]}
5... O-O {[%clk 0:04:53.7]} 6. Nf3 {[%clk 0:04:40.3]} 6... a6 {[%clk 0:04:53.1]}
7. Bb3 {[%clk 0:04:38.8]} 7... Bg4 {[%clk 0:04:51.7]} 8. O-O {[%clk 0:04:33.4]}
8... Nbd7 {[%clk 0:04:50.5]} 9. h3 {[%clk 0:04:31.8]} 9... Bxf3 {[%clk
0:04:49.4]} 10. Qxf3 {[%clk 0:04:31.6]} 10... b5 {[%clk 0:04:48.6]} 11. Bg5
{[%clk 0:04:27.7]} 11... Nb6 {[%clk 0:04:45.8]} 12. Bxf6 {[%clk 0:04:25.1]}
12... Bxf6 {[%clk 0:04:44.7]} 13. Ne2 {[%clk 0:04:22.5]} 13... a5 {[%clk
0:04:43.6]} 14. a3 {[%clk 0:04:20.1]} 14... a4 {[%clk 0:04:40.3]} 15. Ba2 {[%clk
0:04:19.1]} 15... Qd6 {[%clk 0:04:39.5]} 16. c3 {[%clk 0:04:15.1]} 16... Rad8
{[%clk 0:04:35.2]} 17. Qg3 {[%clk 0:04:13.6]} 17... Qxg3 {[%clk 0:04:33]} 18.
fxg3 {[%clk 0:04:13.5]} 18... Nxd5 {[%clk 0:04:31.8]} 19. Nf4 {[%clk 0:04:09.5]}
19... Ne3 {[%clk 0:04:28]} 20. Rf3 {[%clk 0:03:57.4]} 20... Nc4 {[%clk
0:04:24.1]} 21. Bxc4 {[%clk 0:03:55]} 21... bxc4 {[%clk 0:04:23.4]} 22. Nd5
{[%clk 0:03:47.2]} 22... Rxd5 {[%clk 0:04:18.5]} 23. Re1 {[%clk 0:03:43.5]}
23... Rb8 {[%clk 0:04:16.6]} 24. Re2 {[%clk 0:03:41.3]} 24... Kg7 {[%clk
0:04:14.7]} 25. h4 {[%clk 0:03:37.6]} 25... h5 {[%clk 0:04:13.1]} 26. Kh2 {[%clk
0:03:34.9]} 26... c5 {[%clk 0:04:11.9]} 27. dxc5 {[%clk 0:03:31.9]} 27... Rxc5
{[%clk 0:04:11]} 28. Kh3 {[%clk 0:03:30.4]} 28... Rcb5 {[%clk 0:04:09]} 29. Rff2
{[%clk 0:03:28.5]} 29... e5 {[%clk 0:04:04.8]} 30. g4 {[%clk 0:03:24.8]} 30...
hxg4+ {[%clk 0:04:02.8]} 31. Kxg4 {[%clk 0:03:24.7]} 31... Be7 {[%clk
0:04:00.2]} 32. h5 {[%clk 0:03:22.3]} 32... f5+ {[%clk 0:03:58.9]} 33. Kh3
{[%clk 0:03:20.2]} 33... e4 {[%clk 0:03:56.7]} 34. hxg6 {[%clk 0:03:18.3]} 34...
Kxg6 {[%clk 0:03:55.9]} 35. Rf4 {[%clk 0:03:11.8]} 35... Rh8+ {[%clk 0:03:53.3]}
36. Kg3 {[%clk 0:03:10.2]} 36... Bd6 {[%clk 0:03:52.4]} 37. Kf2 {[%clk
0:03:06.4]} 37... Bxf4 {[%clk 0:03:48.9]} 38. g3 {[%clk 0:03:04.8]} 38... Rh2+
{[%clk 0:03:47.1]} 39. Kf1 {[%clk 0:03:03]} 39... Rxe2 {[%clk 0:03:46]} 40. Kxe2
{[%clk 0:03:02.9]} 40... Rxb2+ {[%clk 0:03:43.7]} 41. Kf1 {[%clk 0:03:01.2]}
41... Bxg3 {[%clk 0:03:42.9]} 42. Kg1 {[%clk 0:03:00.1]} 42... f4 {[%clk
0:03:42.3]} 43. Kf1 {[%clk 0:02:59]} 43... f3 {[%clk 0:03:41.6]} 44. Kg1 {[%clk
0:02:58.3]} 44... Rb1# {[%clk 0:03:41.1]} 0-1

[Event "Live Chess"]
[Site "Chess.com"]
[Date "2023.05.21"]
[Round "-"]
[White "LodeshChess"]
[Black "LiamBellwood"]
[Result "0-1"]
[WhiteElo "1134"]
[BlackElo "2058"]
[TimeControl "300"]
[EndTime "16:59:41 PDT"]
[Termination "LiamBellwood won by resignation"]

1. e4 {[%clk 0:04:59.7]} 1... e6 {[%clk 0:04:58.9]} 2. Nf3 {[%clk 0:04:59.1]}
2... d5 {[%clk 0:04:58.5]} 3. e5 {[%clk 0:04:56.2]} 3... c5 {[%clk 0:04:57.7]}
4. d4 {[%clk 0:04:55.8]} 4... Nc6 {[%clk 0:04:57.3]} 5. c3 {[%clk 0:04:55.3]}
5... Bd7 {[%clk 0:04:56.2]} 6. Bd3 {[%clk 0:04:53.4]} 6... Rc8 {[%clk
0:04:54.8]} 7. O-O {[%clk 0:04:51.9]} 7... cxd4 {[%clk 0:04:54.3]} 8. cxd4
{[%clk 0:04:48.7]} 8... Nb4 {[%clk 0:04:53.9]} 9. a3 {[%clk 0:04:43.5]} 9...
Nxd3 {[%clk 0:04:52.8]} 10. Qxd3 {[%clk 0:04:43.1]} 10... Ne7 {[%clk 0:04:51.1]}
11. b4 {[%clk 0:04:41]} 11... Nf5 {[%clk 0:04:50]} 12. Bg5 {[%clk 0:04:36.4]}
12... Qb6 {[%clk 0:04:49.6]} 13. Nc3 {[%clk 0:04:29.2]} 13... h6 {[%clk
0:04:43.5]} 14. Be3 {[%clk 0:04:16.5]} 14... Be7 {[%clk 0:04:35.5]} 15. Rfe1
{[%clk 0:04:03.7]} 15... O-O {[%clk 0:04:25.4]} 16. Rac1 {[%clk 0:03:49.5]}
16... a5 {[%clk 0:04:16.3]} 17. bxa5 {[%clk 0:03:44]} 17... Qxa5 {[%clk
0:04:14.2]} 18. Ne2 {[%clk 0:03:38.2]} 18... Bxa3 {[%clk 0:04:07.6]} 19. Rxc8
{[%clk 0:03:35.6]} 19... Rxc8 {[%clk 0:04:03.4]} 20. Ra1 {[%clk 0:03:34.8]}
20... Bb5 {[%clk 0:03:55.4]} 21. Qxa3 {[%clk 0:03:18.6]} 21... Qxa3 {[%clk
0:03:54.4]} 22. Rxa3 {[%clk 0:03:17.7]} 22... Bxe2 {[%clk 0:03:53]} 23. Ra7
{[%clk 0:03:12.4]} 23... Ba6 {[%clk 0:03:42.8]} 24. h3 {[%clk 0:03:04.8]} 24...
Ne7 {[%clk 0:03:40.8]} 25. Nd2 {[%clk 0:02:51.9]} 25... Nc6 {[%clk 0:03:38.4]}
26. Rxa6 {[%clk 0:02:51.4]} 26... bxa6 {[%clk 0:03:38.3]} 27. Nb3 {[%clk
0:02:50]} 27... a5 {[%clk 0:03:34.6]} 28. Nc5 {[%clk 0:02:47.6]} 28... Rb8
{[%clk 0:03:31.1]} 29. Bd2 {[%clk 0:02:41.8]} 29... Nxd4 {[%clk 0:03:24.2]} 30.
Bc3 {[%clk 0:02:08.2]} 30... Nb3 {[%clk 0:03:18]} 31. Nxb3 {[%clk 0:02:05.9]}
31... Rxb3 {[%clk 0:03:17.9]} 32. Bxa5 {[%clk 0:02:05.2]} 32... d4 {[%clk
0:03:12.2]} 33. Kf1 {[%clk 0:02:04.5]} 33... d3 {[%clk 0:03:11]} 34. Ke1 {[%clk
0:02:03.7]} 34... Ra3 {[%clk 0:03:08.2]} 35. Bb4 {[%clk 0:01:58]} 35... Ra4
{[%clk 0:03:05.4]} 36. Bc3 {[%clk 0:01:53.2]} 36... Ra2 {[%clk 0:02:58.4]} 37.
g3 {[%clk 0:01:45.5]} 37... Re2+ {[%clk 0:02:54]} 38. Kd1 {[%clk 0:01:41.5]}
38... Rxf2 {[%clk 0:02:49]} 0-1

[Event "Live Chess"]
[Site "Chess.com"]
[Date "2023.05.21"]
[Round "-"]
[White "KeithArkell"]
[Black "smoggyrabbit"]
[Result "1-0"]
[WhiteElo "2606"]
[BlackElo "1753"]
[TimeControl "300"]
[EndTime "16:59:51 PDT"]
[Termination "KeithArkell won by checkmate"]

1. d4 {[%clk 0:04:57]} 1... e6 {[%clk 0:04:58.9]} 2. Nf3 {[%clk 0:04:55.6]} 2...
f5 {[%clk 0:04:57.3]} 3. Bg5 {[%clk 0:04:53.6]} 3... Nf6 {[%clk 0:04:52.5]} 4.
Nbd2 {[%clk 0:04:52.1]} 4... d5 {[%clk 0:04:44.1]} 5. e3 {[%clk 0:04:49.4]} 5...
Bd6 {[%clk 0:04:37.9]} 6. Ne5 {[%clk 0:04:47]} 6... O-O {[%clk 0:04:30.7]} 7.
Ndf3 {[%clk 0:04:45.6]} 7... c6 {[%clk 0:04:28.1]} 8. Bd3 {[%clk 0:04:44.3]}
8... Nbd7 {[%clk 0:04:26.2]} 9. O-O {[%clk 0:04:42.4]} 9... Qe8 {[%clk
0:04:25.3]} 10. Nxd7 {[%clk 0:04:40.7]} 10... Bxd7 {[%clk 0:04:24]} 11. Bf4
{[%clk 0:04:39.8]} 11... Bxf4 {[%clk 0:04:18.1]} 12. exf4 {[%clk 0:04:39.7]}
12... Ne4 {[%clk 0:04:14.9]} 13. Ne5 {[%clk 0:04:38.2]} 13... Qe7 {[%clk
0:04:03.6]} 14. f3 {[%clk 0:04:37.1]} 14... Nf6 {[%clk 0:03:58.6]} 15. Re1
{[%clk 0:04:36]} 15... b6 {[%clk 0:03:43.7]} 16. Qd2 {[%clk 0:04:34.5]} 16... c5
{[%clk 0:03:42.7]} 17. c3 {[%clk 0:04:33]} 17... Rac8 {[%clk 0:03:32.1]} 18. Re3
{[%clk 0:04:31.1]} 18... Rfe8 {[%clk 0:03:23.7]} 19. Rae1 {[%clk 0:04:30]} 19...
Qd6 {[%clk 0:03:08.8]} 20. Qe2 {[%clk 0:04:25.2]} 20... cxd4 {[%clk 0:02:58.1]}
21. cxd4 {[%clk 0:04:23.5]} 21... Bc6 {[%clk 0:02:41]} 22. Nxc6 {[%clk
0:04:19.5]} 22... Qxc6 {[%clk 0:02:21.1]} 23. Rxe6 {[%clk 0:04:18]} 23... Rxe6
{[%clk 0:02:17.1]} 24. Qxe6+ {[%clk 0:04:17]} 24... Qxe6 {[%clk 0:02:15.4]} 25.
Rxe6 {[%clk 0:04:16.1]} 25... Kf7 {[%clk 0:02:13.4]} 26. Bxf5 {[%clk 0:04:08.5]}
26... Rc1+ {[%clk 0:02:09.4]} 27. Kf2 {[%clk 0:04:07.6]} 27... g6 {[%clk
0:02:08.3]} 28. Bh3 {[%clk 0:04:06.1]} 28... Nh5 {[%clk 0:02:02.4]} 29. g3
{[%clk 0:04:04.2]} 29... Rc2+ {[%clk 0:01:59.6]} 30. Re2 {[%clk 0:04:03.4]}
30... Rc4 {[%clk 0:01:57]} 31. Be6+ {[%clk 0:04:01.5]} 31... Kf6 {[%clk
0:01:51]} 32. Bxd5 {[%clk 0:04:00.7]} 32... Rxd4 {[%clk 0:01:49.1]} 33. Bb3
{[%clk 0:03:59.9]} 33... Ng7 {[%clk 0:01:25.6]} 34. Rc2 {[%clk 0:03:58.4]} 34...
Rd7 {[%clk 0:01:17.4]} 35. g4 {[%clk 0:03:50.8]} 35... Ke7 {[%clk 0:00:51.2]}
36. Ke3 {[%clk 0:03:48.1]} 36... Ne6 {[%clk 0:00:46.7]} 37. Bxe6 {[%clk
0:03:46.2]} 37... Kxe6 {[%clk 0:00:46.6]} 38. h4 {[%clk 0:03:43.7]} 38... Kf6
{[%clk 0:00:35]} 39. Rc6+ {[%clk 0:03:41.4]} 39... Kf7 {[%clk 0:00:32.3]} 40. g5
{[%clk 0:03:36.3]} 40... Ke7 {[%clk 0:00:23.5]} 41. h5 {[%clk 0:03:33]} 41...
Kf7 {[%clk 0:00:19.4]} 42. hxg6+ {[%clk 0:03:29.1]} 42... hxg6 {[%clk
0:00:19.3]} 43. f5 {[%clk 0:03:25.6]} 43... gxf5 {[%clk 0:00:18]} 44. Kf4 {[%clk
0:03:25]} 44... Kg7 {[%clk 0:00:16.3]} 45. Kxf5 {[%clk 0:03:24]} 45... Rf7+
{[%clk 0:00:15.6]} 46. Kg4 {[%clk 0:03:23.1]} 46... Rd7 {[%clk 0:00:13.8]} 47.
f4 {[%clk 0:03:21.9]} 47... Rd1 {[%clk 0:00:12.2]} 48. Kf5 {[%clk 0:03:20.6]}
48... Rd5+ {[%clk 0:00:10.8]} 49. Kg4 {[%clk 0:03:19.7]} 49... Rd1 {[%clk
0:00:09.8]} 50. Rc7+ {[%clk 0:03:19.3]} 50... Kg6 {[%clk 0:00:08.7]} 51. f5#
{[%clk 0:03:18.9]} 1-0

[Event "Live Chess"]
[Site "Chess.com"]
[Date "2023.05.21"]
[Round "-"]
[White "LL220284LL"]
[Black "GMHarry-youtube"]
[Result "0-1"]
[WhiteElo "2333"]
[BlackElo "2036"]
[TimeControl "300"]
[EndTime "17:00:06 PDT"]
[Termination "GMHarry-youtube won by resignation"]

1. Nf3 {[%clk 0:04:58.9]} 1... Nf6 {[%clk 0:04:58.1]} 2. e3 {[%clk 0:04:58]}
2... e6 {[%clk 0:04:56.4]} 3. b3 {[%clk 0:04:57.5]} 3... d5 {[%clk 0:04:55.9]}
4. Bb2 {[%clk 0:04:57.4]} 4... Be7 {[%clk 0:04:55.1]} 5. d4 {[%clk 0:04:56.9]}
5... c5 {[%clk 0:04:54.4]} 6. Bd3 {[%clk 0:04:56.2]} 6... cxd4 {[%clk
0:04:53.7]} 7. Nxd4 {[%clk 0:04:53.5]} 7... Nc6 {[%clk 0:04:52.9]} 8. Nxc6
{[%clk 0:04:52.5]} 8... bxc6 {[%clk 0:04:52.8]} 9. c4 {[%clk 0:04:51.7]} 9... a5
{[%clk 0:04:50.5]} 10. O-O {[%clk 0:04:50.3]} 10... a4 {[%clk 0:04:48.4]} 11.
Nd2 {[%clk 0:04:49.9]} 11... a3 {[%clk 0:04:46.6]} 12. Bc3 {[%clk 0:04:49.2]}
12... c5 {[%clk 0:04:41.6]} 13. Nf3 {[%clk 0:04:42.7]} 13... O-O {[%clk
0:04:37.2]} 14. Rc1 {[%clk 0:04:40.9]} 14... Ne4 {[%clk 0:04:29.5]} 15. Be5
{[%clk 0:04:28.7]} 15... f5 {[%clk 0:04:25.2]} 16. Qe2 {[%clk 0:04:25.3]} 16...
Bf6 {[%clk 0:04:19.9]} 17. Bxf6 {[%clk 0:04:16.8]} 17... Qxf6 {[%clk 0:04:18.2]}
18. Rfd1 {[%clk 0:04:16.4]} 18... Nc3 {[%clk 0:04:11.6]} 19. Rxc3 {[%clk
0:04:07.3]} 19... Qxc3 {[%clk 0:04:11.5]} 20. cxd5 {[%clk 0:04:02]} 20... exd5
{[%clk 0:04:09.2]} 21. Bb5 {[%clk 0:04:01.3]} 21... Rd8 {[%clk 0:03:57]} 22. Bc6
{[%clk 0:03:58.3]} 22... Ba6 {[%clk 0:03:54.6]} 23. Qd2 {[%clk 0:03:52.6]} 23...
Qxd2 {[%clk 0:03:53.5]} 24. Rxd2 {[%clk 0:03:52.5]} 24... Rac8 {[%clk
0:03:48.5]} 25. Bxd5+ {[%clk 0:03:40.3]} 25... Kf8 {[%clk 0:03:47.8]} 26. Ng5
{[%clk 0:03:39.1]} 26... Bb7 {[%clk 0:03:27.2]} 27. Ne6+ {[%clk 0:03:12.6]}
27... Ke7 {[%clk 0:03:24.9]} 28. Nf4 {[%clk 0:03:05.5]} 28... Bxd5 {[%clk
0:03:21.3]} 29. Nxd5+ {[%clk 0:03:01.5]} 29... Ke6 {[%clk 0:03:20.7]} 30. Nf4+
{[%clk 0:03:00.2]} 30... Kf7 {[%clk 0:03:19.7]} 31. Rxd8 {[%clk 0:02:56]} 31...
Rxd8 {[%clk 0:03:19.6]} 32. g3 {[%clk 0:02:52.4]} 32... Rd2 {[%clk 0:03:18.5]}
0-1

[Event "Live Chess"]
[Site "Chess.com"]
[Date "2023.05.21"]
[Round "-"]
[White "sanjesh_ananda"]
[Black "John_Warren"]
[Result "1-0"]
[WhiteElo "1345"]
[BlackElo "1256"]
[TimeControl "300"]
[EndTime "17:00:17 PDT"]
[Termination "sanjesh_ananda won on time"]

1. e4 {[%clk 0:04:57]} 1... e5 {[%clk 0:04:58.2]} 2. Nf3 {[%clk 0:04:55.4]} 2...
Nc6 {[%clk 0:04:56.4]} 3. Bc4 {[%clk 0:04:52.8]} 3... Bc5 {[%clk 0:04:53.6]} 4.
O-O {[%clk 0:04:47]} 4... Nf6 {[%clk 0:04:18]} 5. Re1 {[%clk 0:04:23]} 5... d6
{[%clk 0:04:15.2]} 6. h3 {[%clk 0:04:19.3]} 6... Be6 {[%clk 0:04:08.4]} 7. Bxe6
{[%clk 0:04:00.8]} 7... fxe6 {[%clk 0:04:04.9]} 8. c3 {[%clk 0:03:59.3]} 8...
Qe7 {[%clk 0:03:59.4]} 9. d4 {[%clk 0:03:57]} 9... exd4 {[%clk 0:03:56.9]} 10.
cxd4 {[%clk 0:03:55.6]} 10... Bb4 {[%clk 0:03:51.4]} 11. Re2 {[%clk 0:03:47.1]}
11... O-O-O {[%clk 0:03:40.4]} 12. Bg5 {[%clk 0:03:41.4]} 12... Rdf8 {[%clk
0:03:29.6]} 13. e5 {[%clk 0:03:30.9]} 13... dxe5 {[%clk 0:03:27.4]} 14. dxe5
{[%clk 0:03:29.7]} 14... Nxe5 {[%clk 0:02:42.6]} 15. Nxe5 {[%clk 0:03:23.7]}
15... Rd8 {[%clk 0:02:31.8]} 16. Qc1 {[%clk 0:03:18.8]} 16... Rd5 {[%clk
0:02:03.9]} 17. Nc3 {[%clk 0:02:58.1]} 17... Bxc3 {[%clk 0:01:59.9]} 18. Qxc3
{[%clk 0:02:54.6]} 18... Rhd8 {[%clk 0:01:53.6]} 19. Ree1 {[%clk 0:02:31.2]}
19... Qc5 {[%clk 0:01:15.2]} 20. Nf3 {[%clk 0:01:03.8]} 20... Qxc3 {[%clk
0:01:09.5]} 21. bxc3 {[%clk 0:01:02.3]} 21... Re8 {[%clk 0:00:40.8]} 22. Nd4
{[%clk 0:00:53.2]} 22... e5 {[%clk 0:00:31.7]} 23. Nf5 {[%clk 0:00:25.5]} 23...
Rd7 {[%clk 0:00:07.9]} 24. Bh4 {[%clk 0:00:14.7]} 24... Nh5 {[%clk 0:00:02.5]}
25. Rac1 {[%clk 0:00:08.1]} 1-0

[Event "Live Chess"]
[Site "Chess.com"]
[Date "2023.05.21"]
[Round "-"]
[White "peter-785"]
[Black "blowerd"]
[Result "0-1"]
[WhiteElo "1162"]
[BlackElo "1391"]
[TimeControl "300"]
[EndTime "17:00:43 PDT"]
[Termination "blowerd won on time"]

1. e4 {[%clk 0:04:58.2]} 1... e5 {[%clk 0:04:58.6]} 2. Nf3 {[%clk 0:04:57]} 2...
Nc6 {[%clk 0:04:56.6]} 3. Bc4 {[%clk 0:04:55.9]} 3... Be7 {[%clk 0:04:54.1]} 4.
d4 {[%clk 0:04:54.9]} 4... exd4 {[%clk 0:04:52]} 5. Nxd4 {[%clk 0:04:53.7]} 5...
Nxd4 {[%clk 0:04:47.8]} 6. Qxd4 {[%clk 0:04:52.9]} 6... Bf6 {[%clk 0:04:42.6]}
7. Qd5 {[%clk 0:04:40.9]} 7... Qe7 {[%clk 0:04:39.4]} 8. O-O {[%clk 0:04:34.5]}
8... c6 {[%clk 0:04:32.3]} 9. Qa5 {[%clk 0:04:11]} 9... Nh6 {[%clk 0:04:28]} 10.
Re1 {[%clk 0:03:54.4]} 10... b6 {[%clk 0:04:21.9]} 11. Qd2 {[%clk 0:03:46.6]}
11... Be5 {[%clk 0:04:20]} 12. f4 {[%clk 0:03:39.2]} 12... Bd6 {[%clk
0:04:12.3]} 13. e5 {[%clk 0:03:32]} 13... Bc5+ {[%clk 0:04:11.2]} 14. Kh1 {[%clk
0:03:31.2]} 14... O-O {[%clk 0:04:07.1]} 15. b3 {[%clk 0:03:24.5]} 15... Ng4
{[%clk 0:04:05.8]} 16. Re2 {[%clk 0:03:11]} 16... d6 {[%clk 0:03:53]} 17. Bb2
{[%clk 0:03:01.5]} 17... dxe5 {[%clk 0:03:46.7]} 18. fxe5 {[%clk 0:02:56.7]}
18... Rd8 {[%clk 0:03:45]} 19. Qe1 {[%clk 0:02:53.2]} 19... Nf2+ {[%clk
0:03:35.9]} 20. Rxf2 {[%clk 0:02:48.5]} 20... Bxf2 {[%clk 0:03:34.3]} 21. Qf1
{[%clk 0:02:36.2]} 21... Bg4 {[%clk 0:03:22.2]} 22. Na3 {[%clk 0:02:10.9]} 22...
Bc5 {[%clk 0:03:06.4]} 23. h3 {[%clk 0:01:27.3]} 23... Bh5 {[%clk 0:02:46]} 24.
Qf5 {[%clk 0:01:10.1]} 24... Bg6 {[%clk 0:02:39.5]} 25. Qf1 {[%clk 0:01:05.2]}
25... Bxa3 {[%clk 0:02:36]} 26. Bxa3 {[%clk 0:01:03.3]} 26... Qxa3 {[%clk
0:02:33.9]} 27. e6 {[%clk 0:00:57.3]} 27... Qe7 {[%clk 0:02:26.9]} 28. exf7+
{[%clk 0:00:48.4]} 28... Bxf7 {[%clk 0:02:23.3]} 29. Bd3 {[%clk 0:00:42.9]}
29... Qf6 {[%clk 0:01:46.1]} 30. Qg1 {[%clk 0:00:23.6]} 30... Bg6 {[%clk
0:01:39.7]} 31. Bc4+ {[%clk 0:00:18.2]} 31... Kh8 {[%clk 0:01:37.1]} 32. Rf1
{[%clk 0:00:16.6]} 32... Qe5 {[%clk 0:01:32.1]} 33. Re1 {[%clk 0:00:13.3]} 33...
Qc5 {[%clk 0:01:27.9]} 34. Qf1 {[%clk 0:00:10.4]} 34... Rf8 {[%clk 0:01:21.8]}
35. Qe2 {[%clk 0:00:05.9]} 35... Rfe8 {[%clk 0:01:13.7]} 36. Qd1 {[%clk
0:00:00.7]} 36... Rxe1+ {[%clk 0:01:10.6]} 0-1

[Event "Live Chess"]
[Site "Chess.com"]
[Date "2023.05.21"]
[Round "-"]
[White "Fazer180"]
[Black "Doge_Dandolo"]
[Result "0-1"]
[WhiteElo "1742"]
[BlackElo "1983"]
[TimeControl "300"]
[EndTime "17:00:44 PDT"]
[Termination "Doge_Dandolo won by resignation"]

1. e4 {[%clk 0:04:56.7]} 1... c6 {[%clk 0:04:59]} 2. d4 {[%clk 0:04:54.1]} 2...
d5 {[%clk 0:04:58.4]} 3. Nc3 {[%clk 0:04:53.2]} 3... dxe4 {[%clk 0:04:57.6]} 4.
Nxe4 {[%clk 0:04:52.7]} 4... Bf5 {[%clk 0:04:57.2]} 5. Ng3 {[%clk 0:04:51.5]}
5... Bg6 {[%clk 0:04:56.7]} 6. h4 {[%clk 0:04:50.4]} 6... h6 {[%clk 0:04:55.9]}
7. h5 {[%clk 0:04:47.7]} 7... Bh7 {[%clk 0:04:55.1]} 8. Nf3 {[%clk 0:04:47.5]}
8... Nd7 {[%clk 0:04:53.1]} 9. Bd3 {[%clk 0:04:45.8]} 9... Bxd3 {[%clk
0:04:52.6]} 10. Qxd3 {[%clk 0:04:45.3]} 10... e6 {[%clk 0:04:52.3]} 11. O-O
{[%clk 0:04:39.6]} 11... Ngf6 {[%clk 0:04:50.4]} 12. c4 {[%clk 0:04:38.2]} 12...
Be7 {[%clk 0:04:48.9]} 13. Bf4 {[%clk 0:04:32]} 13... O-O {[%clk 0:04:46.6]} 14.
Rad1 {[%clk 0:04:26]} 14... b5 {[%clk 0:04:44.1]} 15. cxb5 {[%clk 0:04:21.2]}
15... cxb5 {[%clk 0:04:41.7]} 16. Qxb5 {[%clk 0:04:15.1]} 16... Nd5 {[%clk
0:04:40.8]} 17. Be3 {[%clk 0:04:08.4]} 17... Rb8 {[%clk 0:04:38.2]} 18. Qe2
{[%clk 0:03:55.6]} 18... Qb6 {[%clk 0:04:32.8]} 19. Rb1 {[%clk 0:03:46.5]} 19...
N7f6 {[%clk 0:04:27.3]} 20. Ne5 {[%clk 0:03:31.7]} 20... Bd6 {[%clk 0:04:23.5]}
21. Nc4 {[%clk 0:03:27.5]} 21... Qc7 {[%clk 0:04:17.1]} 22. Nxd6 {[%clk
0:03:25]} 22... Qxd6 {[%clk 0:04:15.7]} 23. Rfc1 {[%clk 0:03:16.4]} 23... Rb4
{[%clk 0:04:09.2]} 24. a3 {[%clk 0:03:10.4]} 24... Rb7 {[%clk 0:04:07.7]} 25. b4
{[%clk 0:03:04.5]} 25... Rfb8 {[%clk 0:04:05.4]} 26. Rc4 {[%clk 0:03:01.4]}
26... a5 {[%clk 0:04:01.9]} 27. Bd2 {[%clk 0:02:51.5]} 27... axb4 {[%clk
0:03:56.8]} 28. axb4 {[%clk 0:02:48.1]} 28... Nxb4 {[%clk 0:03:45.1]} 29. Bxb4
{[%clk 0:02:24.3]} 29... Rxb4 {[%clk 0:03:41.7]} 30. Rbc1 {[%clk 0:02:16.2]}
30... Rb2 {[%clk 0:03:31.6]} 31. Qd3 {[%clk 0:02:04]} 31... Rd8 {[%clk
0:03:16.2]} 32. Qc3 {[%clk 0:01:54.3]} 32... Rbb8 {[%clk 0:03:09.2]} 33. Rd1
{[%clk 0:01:50.6]} 33... Nd5 {[%clk 0:03:07.6]} 34. Qc2 {[%clk 0:01:43]} 34...
f5 {[%clk 0:02:59.8]} 35. Nf1 {[%clk 0:01:33]} 35... Rb6 {[%clk 0:02:47.5]} 36.
Rc8 {[%clk 0:01:27.1]} 36... Rb4 {[%clk 0:02:43.1]} 37. Rxd8+ {[%clk 0:01:22.4]}
37... Qxd8 {[%clk 0:02:41.7]} 38. Ne3 {[%clk 0:01:21.7]} 38... Nxe3 {[%clk
0:02:35.8]} 39. fxe3 {[%clk 0:01:19.6]} 39... Qg5 {[%clk 0:02:26.4]} 40. Qc8+
{[%clk 0:01:15.7]} 40... Kh7 {[%clk 0:02:25.3]} 41. Qxe6 {[%clk 0:01:14]} 41...
Rb2 {[%clk 0:02:21.1]} 42. Qc6 {[%clk 0:01:09.3]} 42... Qxe3+ {[%clk 0:02:18.3]}
43. Kh1 {[%clk 0:01:05.6]} 43... Qg5 {[%clk 0:02:14.1]} 44. Qf3 {[%clk
0:01:01.7]} 44... Rxg2 {[%clk 0:01:59.3]} 45. Qxg2 {[%clk 0:00:53.2]} 45...
Qxh5+ {[%clk 0:01:58.3]} 46. Qh2 {[%clk 0:00:45.9]} 46... Qxd1+ {[%clk
0:01:57.1]} 47. Qg1 {[%clk 0:00:45]} 47... Qxg1+ {[%clk 0:01:47.4]} 48. Kxg1
{[%clk 0:00:44.9]} 48... Kg6 {[%clk 0:01:46.9]} 49. Kf2 {[%clk 0:00:43.4]} 49...
Kf6 {[%clk 0:01:46.3]} 50. Ke3 {[%clk 0:00:41.9]} 50... g5 {[%clk 0:01:44]} 51.
Kd3 {[%clk 0:00:38.7]} 51... Ke6 {[%clk 0:01:43.1]} 52. Kc4 {[%clk 0:00:37.6]}
52... Kd6 {[%clk 0:01:42.2]} 53. d5 {[%clk 0:00:35.4]} 53... f4 {[%clk
0:01:41.2]} 54. Kd4 {[%clk 0:00:33.5]} 54... g4 {[%clk 0:01:40.1]} 55. Ke4
{[%clk 0:00:32.2]} 55... f3 {[%clk 0:01:39.3]} 56. Ke3 {[%clk 0:00:30.5]} 56...
Kxd5 {[%clk 0:01:38.1]} 0-1